[Event "*** SCC Grand Prix: Titled Tuesday Blitz"]
[Site "Chess.com"]
[Date "2020.06.09"]
[Round "2"]
[White "malandragem"]
[Black "RusPakhom"]
[Result "1/2-1/2"]
[WhiteElo "2464"]
[BlackElo "2294"]
[TimeControl "180+1"]
[EndTime "9:18:58 PDT"]
[Termination "Game drawn by repetition"]

1. a3 {[%clk 0:03:00.9]} 1... c5 {[%clk 0:02:59.2]} 2. e4 {[%clk 0:02:59.2]}
2... g6 {[%clk 0:02:57.5]} 3. b4 {[%clk 0:02:59.5]} 3... Bg7 {[%clk 0:02:56.8]}
4. Nc3 {[%clk 0:03:00]} 4... cxb4 {[%clk 0:02:56.7]} 5. axb4 {[%clk 0:03:00.9]}
5... d6 {[%clk 0:02:53.4]} 6. g3 {[%clk 0:02:46.5]} 6... Nf6 {[%clk 0:02:53.2]}
7. Bg2 {[%clk 0:02:46.6]} 7... O-O {[%clk 0:02:53.3]} 8. Nge2 {[%clk 0:02:45.9]}
8... Nbd7 {[%clk 0:02:50.8]} 9. O-O {[%clk 0:02:45.5]} 9... Nb6 {[%clk
0:02:49.4]} 10. d3 {[%clk 0:02:45.2]} 10... Bd7 {[%clk 0:02:49.1]} 11. Be3
{[%clk 0:02:45.3]} 11... a6 {[%clk 0:02:30.4]} 12. Rb1 {[%clk 0:02:36.1]} 12...
Rc8 {[%clk 0:02:30]} 13. Nd5 {[%clk 0:02:26.4]} 13... Nbxd5 {[%clk 0:02:25]} 14.
exd5 {[%clk 0:02:27.3]} 14... Qc7 {[%clk 0:02:15.2]} 15. c4 {[%clk 0:02:22.7]}
15... Ng4 {[%clk 0:02:07.1]} 16. Bd4 {[%clk 0:02:21.3]} 16... Ne5 {[%clk
0:01:53.6]} 17. h3 {[%clk 0:02:10.1]} 17... Bf5 {[%clk 0:01:31.8]} 18. Bxe5
{[%clk 0:01:42.7]} 18... Bxe5 {[%clk 0:01:30.2]} 19. f4 {[%clk 0:01:43]} 19...
Bg7 {[%clk 0:01:29.4]} 20. g4 {[%clk 0:01:43.5]} 20... Bd7 {[%clk 0:01:29.7]}
21. f5 {[%clk 0:01:44]} 21... b5 {[%clk 0:01:28.9]} 22. Rc1 {[%clk 0:01:43]}
22... bxc4 {[%clk 0:01:28.2]} 23. dxc4 {[%clk 0:01:43.9]} 23... Qb6+ {[%clk
0:01:28.2]} 24. Kh1 {[%clk 0:01:42.7]} 24... Qxb4 {[%clk 0:01:28.7]} 25. Qd3
{[%clk 0:01:32.3]} 25... Rc5 {[%clk 0:01:21.4]} 26. Nd4 {[%clk 0:01:18.2]} 26...
Bxd4 {[%clk 0:00:52.6]} 27. Qxd4 {[%clk 0:01:19.1]} 27... Rfc8 {[%clk
0:00:52.9]} 28. fxg6 {[%clk 0:01:19.3]} 28... hxg6 {[%clk 0:00:50.8]} 29. Rf4
{[%clk 0:00:53.6]} 29... e5 {[%clk 0:00:42.7]} 30. dxe6 {[%clk 0:00:53.2]} 30...
Bxe6 {[%clk 0:00:43.5]} 31. Qxd6 {[%clk 0:00:31.3]} 31... a5 {[%clk 0:00:42.4]}
32. Bf1 {[%clk 0:00:20.2]} 32... Bxc4 {[%clk 0:00:37.5]} 33. Bxc4 {[%clk
0:00:17.3]} 33... Rxc4 {[%clk 0:00:37.6]} 34. Rcxc4 {[%clk 0:00:08.5]} 34...
Qxd6 {[%clk 0:00:29.1]} 35. Rxc8+ {[%clk 0:00:08.7]} 35... Kg7 {[%clk
0:00:29.3]} 36. Rcc4 {[%clk 0:00:09.6]} 36... Qd1+ {[%clk 0:00:26.6]} 37. Kg2
{[%clk 0:00:10]} 37... Qe2+ {[%clk 0:00:25.1]} 38. Kg3 {[%clk 0:00:10.5]} 38...
Qe1+ {[%clk 0:00:24.1]} 39. Kg2 {[%clk 0:00:10.9]} 39... Qe2+ {[%clk 0:00:22.5]}
40. Kg3 {[%clk 0:00:11]} 40... Qe5 {[%clk 0:00:22.9]} 41. Kf3 {[%clk 0:00:10.9]}
41... Qd5+ {[%clk 0:00:19.2]} 42. Kg3 {[%clk 0:00:10.7]} 42... Qd6 {[%clk
0:00:13.6]} 43. h4 {[%clk 0:00:10.8]} 43... Qe5 {[%clk 0:00:11.3]} 44. g5 {[%clk
0:00:11]} 44... Qe1+ {[%clk 0:00:11.1]} 45. Kg2 {[%clk 0:00:10.6]} 45... Qe2+
{[%clk 0:00:11]} 46. Kg3 {[%clk 0:00:10.9]} 46... Qe1+ {[%clk 0:00:11]} 47. Kg2
{[%clk 0:00:11.4]} 47... Qe2+ {[%clk 0:00:11.2]} 48. Kg3 {[%clk 0:00:11.9]}
48... Qe1+ {[%clk 0:00:11]} 1/2-1/2

[Event "*** SCC Grand Prix: Titled Tuesday Blitz"]
[Site "Chess.com"]
[Date "2020.06.09"]
[Round "2"]
[White "ChronicUnhappiness"]
[Black "ClassyEl"]
[Result "1-0"]
[WhiteElo "2323"]
[BlackElo "2519"]
[TimeControl "180+1"]
[EndTime "9:19:01 PDT"]
[Termination "ChronicUnhappiness won by resignation"]

1. c4 {[%clk 0:03:00.9]} 1... c6 {[%clk 0:02:59.1]} 2. Nf3 {[%clk 0:02:59.5]}
2... d5 {[%clk 0:02:59.6]} 3. e3 {[%clk 0:02:59.7]} 3... Nf6 {[%clk 0:02:59.9]}
4. Nc3 {[%clk 0:02:59.8]} 4... a6 {[%clk 0:03:00.4]} 5. b3 {[%clk 0:02:58.4]}
5... Bf5 {[%clk 0:03:00.2]} 6. Bb2 {[%clk 0:02:56.4]} 6... e6 {[%clk 0:03:00.6]}
7. d4 {[%clk 0:02:56]} 7... h6 {[%clk 0:03:00.4]} 8. Bd3 {[%clk 0:02:55.9]} 8...
Ne4 {[%clk 0:03:00.2]} 9. Qc2 {[%clk 0:02:49.8]} 9... Bb4 {[%clk 0:02:57.9]} 10.
O-O {[%clk 0:02:47.8]} 10... Nd6 {[%clk 0:02:51.9]} 11. a3 {[%clk 0:02:34.7]}
11... Bxc3 {[%clk 0:02:45.4]} 12. Qxc3 {[%clk 0:02:24.8]} 12... O-O {[%clk
0:02:41]} 13. Ne5 {[%clk 0:02:01.9]} 13... Nd7 {[%clk 0:02:36.3]} 14. Rad1
{[%clk 0:02:00.3]} 14... Rc8 {[%clk 0:02:34.2]} 15. c5 {[%clk 0:01:27.4]} 15...
Nxe5 {[%clk 0:02:07.2]} 16. dxe5 {[%clk 0:01:27.1]} 16... Bxd3 {[%clk
0:01:59.7]} 17. Qxd3 {[%clk 0:01:26]} 17... Ne4 {[%clk 0:01:56.5]} 18. b4 {[%clk
0:01:24]} 18... a5 {[%clk 0:01:53.7]} 19. f3 {[%clk 0:01:23.1]} 19... Ng5 {[%clk
0:01:53.8]} 20. h4 {[%clk 0:01:11.8]} 20... Nh7 {[%clk 0:01:53.4]} 21. Qd4
{[%clk 0:01:11.3]} 21... Ra8 {[%clk 0:01:50.9]} 22. Qg4 {[%clk 0:01:03.2]} 22...
Qe7 {[%clk 0:01:40.9]} 23. f4 {[%clk 0:00:56]} 23... axb4 {[%clk 0:01:40.6]} 24.
axb4 {[%clk 0:00:55.2]} 24... Ra2 {[%clk 0:01:34.3]} 25. Bd4 {[%clk 0:00:53.2]}
25... Rfa8 {[%clk 0:01:32.7]} 26. f5 {[%clk 0:00:49.4]} 26... exf5 {[%clk
0:01:33]} 27. Rxf5 {[%clk 0:00:41.3]} 27... Nf8 {[%clk 0:01:20.3]} 28. Rdf1
{[%clk 0:00:37.2]} 28... Qe6 {[%clk 0:01:09.9]} 29. Qf3 {[%clk 0:00:36.1]} 29...
Ng6 {[%clk 0:01:05.5]} 30. Rxf7 {[%clk 0:00:31.4]} 30... Nxh4 {[%clk 0:01:04.7]}
31. Rf8+ {[%clk 0:00:30.8]} 31... Rxf8 {[%clk 0:01:04.3]} 32. Qxf8+ {[%clk
0:00:31.5]} 32... Kh7 {[%clk 0:01:04.9]} 33. Rf2 {[%clk 0:00:27.1]} 33... Rxf2
{[%clk 0:00:57.1]} 34. Kxf2 {[%clk 0:00:27.3]} 34... Qg4 {[%clk 0:00:54.8]} 35.
g3 {[%clk 0:00:17.4]} 35... Qf5+ {[%clk 0:00:54.5]} 36. Qxf5+ {[%clk 0:00:16.3]}
36... Nxf5 {[%clk 0:00:54.6]} 37. Kf3 {[%clk 0:00:16.6]} 37... h5 {[%clk
0:00:39.3]} 38. g4 {[%clk 0:00:14.6]} 38... hxg4+ {[%clk 0:00:34.4]} 39. Kxg4
{[%clk 0:00:15.5]} 39... Kg6 {[%clk 0:00:33.5]} 40. Kf4 {[%clk 0:00:10.7]} 40...
Ne7 {[%clk 0:00:28.8]} 41. e6 {[%clk 0:00:09.4]} 41... Nf5 {[%clk 0:00:27.4]}
42. Ke5 {[%clk 0:00:09.6]} 42... Ne7 {[%clk 0:00:23.9]} 43. Kd6 {[%clk
0:00:08.5]} 43... Nf5+ {[%clk 0:00:24.1]} 44. Kc7 {[%clk 0:00:08.2]} 44... Kh5
{[%clk 0:00:24.5]} 45. Bxg7 {[%clk 0:00:06.1]} 45... Nxg7 {[%clk 0:00:24]} 46.
e7 {[%clk 0:00:06.2]} 46... Kg6 {[%clk 0:00:23.9]} 47. Kxb7 {[%clk 0:00:06.4]}
47... Kf7 {[%clk 0:00:24.3]} 48. Kxc6 {[%clk 0:00:06.4]} 48... Kxe7 {[%clk
0:00:25.2]} 49. Kxd5 {[%clk 0:00:06.7]} 49... Kd7 {[%clk 0:00:25.4]} 50. b5
{[%clk 0:00:06.9]} 50... Kc7 {[%clk 0:00:25.7]} 51. b6+ {[%clk 0:00:06.6]} 51...
Kb7 {[%clk 0:00:25.7]} 52. e4 {[%clk 0:00:07.5]} 52... Nh5 {[%clk 0:00:25]} 53.
e5 {[%clk 0:00:07.6]} 53... Nf4+ {[%clk 0:00:25.4]} 54. Kd6 {[%clk 0:00:07.9]}
54... Nd3 {[%clk 0:00:25.6]} 55. e6 {[%clk 0:00:08.3]} 55... Nf4 {[%clk
0:00:25.6]} 56. e7 {[%clk 0:00:08.1]} 56... Ng6 {[%clk 0:00:25.6]} 57. e8=Q
{[%clk 0:00:07.3]} 1-0

[Event "*** SCC Grand Prix: Titled Tuesday Blitz"]
[Site "Chess.com"]
[Date "2020.06.09"]
[Round "2"]
[White "MFBerna"]
[Black "Bhagya_2312"]
[Result "1-0"]
[WhiteElo "2424"]
[BlackElo "2130"]
[TimeControl "180+1"]
[EndTime "9:19:01 PDT"]
[Termination "MFBerna won on time"]

1. d4 {[%clk 0:03:00.9]} 1... d5 {[%clk 0:02:59.1]} 2. c4 {[%clk 0:03:00.4]}
2... e6 {[%clk 0:02:59]} 3. Nc3 {[%clk 0:03:00.4]} 3... Be7 {[%clk 0:02:59.3]}
4. cxd5 {[%clk 0:02:59]} 4... exd5 {[%clk 0:02:58.7]} 5. Bf4 {[%clk 0:02:59.4]}
5... c6 {[%clk 0:02:58.9]} 6. e3 {[%clk 0:02:59.8]} 6... Bf5 {[%clk 0:02:58.5]}
7. Bd3 {[%clk 0:02:52.6]} 7... Bxd3 {[%clk 0:02:55.9]} 8. Qxd3 {[%clk
0:02:53.5]} 8... Nf6 {[%clk 0:02:55.3]} 9. Nge2 {[%clk 0:02:52.8]} 9... O-O
{[%clk 0:02:42.2]} 10. O-O {[%clk 0:02:52.9]} 10... Nbd7 {[%clk 0:02:40.7]} 11.
h3 {[%clk 0:02:32.3]} 11... Re8 {[%clk 0:02:39.9]} 12. f3 {[%clk 0:02:28.2]}
12... Nb6 {[%clk 0:02:28.8]} 13. e4 {[%clk 0:02:24.1]} 13... c5 {[%clk
0:01:56.2]} 14. e5 {[%clk 0:02:11.5]} 14... Nfd7 {[%clk 0:01:55.5]} 15. Kh1
{[%clk 0:01:57.9]} 15... c4 {[%clk 0:01:36.4]} 16. Qd2 {[%clk 0:01:55.9]} 16...
Nf8 {[%clk 0:01:35.2]} 17. Bh2 {[%clk 0:01:42.9]} 17... Qd7 {[%clk 0:01:22.8]}
18. f4 {[%clk 0:01:42.6]} 18... f5 {[%clk 0:01:22.7]} 19. exf6 {[%clk
0:01:38.6]} 19... Bxf6 {[%clk 0:01:21.7]} 20. Rae1 {[%clk 0:01:17.6]} 20... Na4
{[%clk 0:01:12.3]} 21. f5 {[%clk 0:00:47.5]} 21... Nxc3 {[%clk 0:01:09.3]} 22.
bxc3 {[%clk 0:00:40.1]} 22... b5 {[%clk 0:01:08.6]} 23. g4 {[%clk 0:00:28.6]}
23... h6 {[%clk 0:00:59.9]} 24. Nf4 {[%clk 0:00:23.4]} 24... Bg5 {[%clk
0:00:31.8]} 25. Qg2 {[%clk 0:00:21.6]} 25... Bxf4 {[%clk 0:00:26]} 26. Bxf4
{[%clk 0:00:22.5]} 26... Nh7 {[%clk 0:00:20.8]} 27. Re5 {[%clk 0:00:20]} 27...
Nf6 {[%clk 0:00:17.4]} 28. Rfe1 {[%clk 0:00:19.5]} 28... Ne4 {[%clk 0:00:17.2]}
29. Qf3 {[%clk 0:00:19.5]} 29... a5 {[%clk 0:00:14.7]} 30. Kg2 {[%clk
0:00:19.2]} 30... b4 {[%clk 0:00:14.9]} 31. cxb4 {[%clk 0:00:06.8]} 31... axb4
{[%clk 0:00:14.8]} 32. Re2 {[%clk 0:00:06]} 32... c3 {[%clk 0:00:12.6]} 33. Qd3
{[%clk 0:00:03.9]} 33... Rxe5 {[%clk 0:00:09.7]} 34. dxe5 {[%clk 0:00:04.7]}
34... Qc6 {[%clk 0:00:09.1]} 35. Kh2 {[%clk 0:00:04.1]} 35... Nc5 {[%clk
0:00:08.5]} 36. Qd4 {[%clk 0:00:02.8]} 36... Ne4 {[%clk 0:00:08.1]} 37. e6
{[%clk 0:00:02.9]} 37... c2 {[%clk 0:00:08.1]} 38. Rf2 {[%clk 0:00:02]} 38...
c1=Q {[%clk 0:00:07.9]} 39. Bxc1 {[%clk 0:00:01.8]} 39... Qxc1 {[%clk
0:00:07.9]} 40. Qxd5 {[%clk 0:00:01.7]} 40... Qc7+ {[%clk 0:00:07.7]} 41. Kg2
{[%clk 0:00:01.8]} 41... Rd8 {[%clk 0:00:04.3]} 42. Qxe4 {[%clk 0:00:01.8]}
42... Qc3 {[%clk 0:00:02.6]} 43. Re2 {[%clk 0:00:02.3]} 43... Qf6 {[%clk
0:00:01.2]} 44. e7 {[%clk 0:00:02.6]} 44... Re8 {[%clk 0:00:01.8]} 45. Qe6+
{[%clk 0:00:02.8]} 1-0

[Event "*** SCC Grand Prix: Titled Tuesday Blitz"]
[Site "Chess.com"]
[Date "2020.06.09"]
[Round "2"]
[White "nihalsarin"]
[Black "Bykov_Egor"]
[Result "1-0"]
[WhiteElo "3011"]
[BlackElo "2612"]
[TimeControl "180+1"]
[EndTime "9:19:04 PDT"]
[Termination "nihalsarin won by resignation"]

1. d4 {[%clk 0:03:00.9]} 1... Nf6 {[%clk 0:02:59.8]} 2. Bg5 {[%clk 0:02:59.9]}
2... d5 {[%clk 0:02:59.5]} 3. e3 {[%clk 0:02:58.7]} 3... c5 {[%clk 0:02:59.2]}
4. Bxf6 {[%clk 0:02:57.7]} 4... gxf6 {[%clk 0:02:58.5]} 5. dxc5 {[%clk
0:02:52.5]} 5... e6 {[%clk 0:02:58]} 6. c4 {[%clk 0:02:41.3]} 6... dxc4 {[%clk
0:02:48]} 7. Nd2 {[%clk 0:02:40]} 7... Bxc5 {[%clk 0:02:42.7]} 8. Bxc4 {[%clk
0:02:39.3]} 8... a6 {[%clk 0:02:31.6]} 9. Rc1 {[%clk 0:02:37.8]} 9... Bb4 {[%clk
0:02:16.3]} 10. Nf3 {[%clk 0:02:35.9]} 10... b5 {[%clk 0:02:14.7]} 11. Be2
{[%clk 0:02:24.6]} 11... Bb7 {[%clk 0:02:10.4]} 12. O-O {[%clk 0:02:24.7]} 12...
Nd7 {[%clk 0:01:52.7]} 13. a4 {[%clk 0:02:16.8]} 13... Rg8 {[%clk 0:01:42.2]}
14. axb5 {[%clk 0:01:48.7]} 14... axb5 {[%clk 0:00:43.3]} 15. g3 {[%clk
0:01:46.6]} 15... Kf8 {[%clk 0:00:28.9]} 16. Qb3 {[%clk 0:00:51.9]} 16... Qa5
{[%clk 0:00:28.6]} 17. Ra1 {[%clk 0:00:40.1]} 17... Qxa1 {[%clk 0:00:28.2]} 18.
Qxb4+ {[%clk 0:00:40.6]} 18... Kg7 {[%clk 0:00:21.5]} 19. Rxa1 {[%clk
0:00:41.1]} 19... Rxa1+ {[%clk 0:00:22.4]} 20. Kg2 {[%clk 0:00:38.1]} 20... Ne5
{[%clk 0:00:19.1]} 21. e4 {[%clk 0:00:37.1]} 21... Ng6 {[%clk 0:00:17.4]} 22.
Qxb5 {[%clk 0:00:35.4]} 22... Ba6 {[%clk 0:00:17.1]} 23. Qxa6 {[%clk 0:00:27.3]}
23... Rxa6 {[%clk 0:00:16.7]} 24. Bxa6 {[%clk 0:00:28.2]} 24... Rb8 {[%clk
0:00:16.9]} 25. b3 {[%clk 0:00:25.6]} 25... f5 {[%clk 0:00:16.4]} 26. exf5
{[%clk 0:00:25.2]} 26... exf5 {[%clk 0:00:17.3]} 27. Bc4 {[%clk 0:00:22.4]}
27... Kf6 {[%clk 0:00:16.7]} 28. Nf1 {[%clk 0:00:19.2]} 28... f4 {[%clk
0:00:16]} 29. N1d2 {[%clk 0:00:19.4]} 29... fxg3 {[%clk 0:00:15.9]} 30. hxg3
{[%clk 0:00:19.8]} 30... h6 {[%clk 0:00:10.9]} 31. Ne4+ {[%clk 0:00:20]} 31...
Ke7 {[%clk 0:00:11.3]} 32. Nd4 {[%clk 0:00:20.6]} 32... Ne5 {[%clk 0:00:10.7]}
33. Nf5+ {[%clk 0:00:19.2]} 33... Kf8 {[%clk 0:00:09.1]} 34. Nxh6 {[%clk
0:00:17.4]} 34... Nxc4 {[%clk 0:00:09.2]} 35. bxc4 {[%clk 0:00:18.3]} 35... Rb4
{[%clk 0:00:08.2]} 36. Nd6 {[%clk 0:00:18.1]} 36... f6 {[%clk 0:00:05.5]} 37.
Nhf5 {[%clk 0:00:17.1]} 37... Rb2 {[%clk 0:00:05]} 38. c5 {[%clk 0:00:13.2]}
38... Rc2 {[%clk 0:00:05.3]} 39. Nd4 {[%clk 0:00:13.9]} 39... Rc3 {[%clk
0:00:03.5]} 40. c6 {[%clk 0:00:13.1]} 40... Ke7 {[%clk 0:00:03.6]} 41. N6b5
{[%clk 0:00:13.3]} 41... Rc4 {[%clk 0:00:03.9]} 42. c7 {[%clk 0:00:13.1]} 42...
Kd7 {[%clk 0:00:04.4]} 43. Nf5 {[%clk 0:00:12.5]} 43... Rc5 {[%clk 0:00:04.1]}
44. Nfd6 {[%clk 0:00:12.4]} 44... Rxc7 {[%clk 0:00:03.4]} 45. Nxc7 {[%clk
0:00:12.2]} 1-0

[Event "*** SCC Grand Prix: Titled Tuesday Blitz"]
[Site "Chess.com"]
[Date "2020.06.09"]
[Round "2"]
[White "ZverevLev"]
[Black "ajian"]
[Result "1-0"]
[WhiteElo "2255"]
[BlackElo "2444"]
[TimeControl "180+1"]
[EndTime "9:19:07 PDT"]
[Termination "ZverevLev won by resignation"]

1. e4 {[%clk 0:03:00.4]} 1... c5 {[%clk 0:02:57.7]} 2. Nf3 {[%clk 0:02:59.4]}
2... Nc6 {[%clk 0:02:57.8]} 3. d4 {[%clk 0:02:58.9]} 3... cxd4 {[%clk
0:02:58.7]} 4. Nxd4 {[%clk 0:02:59.4]} 4... Nf6 {[%clk 0:02:59.2]} 5. Nc3 {[%clk
0:02:57.4]} 5... e5 {[%clk 0:02:58.7]} 6. Ndb5 {[%clk 0:02:55]} 6... d6 {[%clk
0:02:57.7]} 7. Bg5 {[%clk 0:02:52.6]} 7... a6 {[%clk 0:02:55.7]} 8. Na3 {[%clk
0:02:51.8]} 8... b5 {[%clk 0:02:56.6]} 9. Bxf6 {[%clk 0:02:46.1]} 9... gxf6
{[%clk 0:02:57.5]} 10. Nd5 {[%clk 0:02:43]} 10... f5 {[%clk 0:02:57.8]} 11. g3
{[%clk 0:02:38.2]} 11... fxe4 {[%clk 0:02:53.7]} 12. Bg2 {[%clk 0:02:34.2]}
12... Bf5 {[%clk 0:02:53.3]} 13. O-O {[%clk 0:02:28.4]} 13... Bg7 {[%clk
0:02:32.6]} 14. f3 {[%clk 0:02:19.6]} 14... e3 {[%clk 0:02:13.6]} 15. Nxe3
{[%clk 0:02:17.5]} 15... Qb6 {[%clk 0:02:04.7]} 16. Re1 {[%clk 0:01:56.8]} 16...
O-O {[%clk 0:02:03.7]} 17. Kh1 {[%clk 0:01:53]} 17... Be6 {[%clk 0:01:54.8]} 18.
c3 {[%clk 0:01:51.4]} 18... Rad8 {[%clk 0:01:49]} 19. Nd5 {[%clk 0:01:47.9]}
19... Qc5 {[%clk 0:01:12.2]} 20. f4 {[%clk 0:01:39.6]} 20... a5 {[%clk
0:01:05.2]} 21. Nc2 {[%clk 0:01:19.1]} 21... f5 {[%clk 0:00:47.6]} 22. Nce3
{[%clk 0:01:14.5]} 22... e4 {[%clk 0:00:41.4]} 23. Rc1 {[%clk 0:01:02.9]} 23...
Qa7 {[%clk 0:00:33.5]} 24. b4 {[%clk 0:00:59.2]} 24... Ne7 {[%clk 0:00:31.8]}
25. Nxe7+ {[%clk 0:00:55.3]} 25... Qxe7 {[%clk 0:00:32.7]} 26. Nd5 {[%clk
0:00:55.5]} 26... Qf7 {[%clk 0:00:32.1]} 27. Ne3 {[%clk 0:00:53.1]} 27... d5
{[%clk 0:00:31.7]} 28. Nc2 {[%clk 0:00:52.5]} 28... Rc8 {[%clk 0:00:27.4]} 29.
Nd4 {[%clk 0:00:51.3]} 29... Rc4 {[%clk 0:00:24.7]} 30. bxa5 {[%clk 0:00:49]}
30... b4 {[%clk 0:00:23]} 31. Nxe6 {[%clk 0:00:48.1]} 31... Qxe6 {[%clk
0:00:21.8]} 32. cxb4 {[%clk 0:00:47.8]} 32... Rxb4 {[%clk 0:00:20.6]} 33. Rc7
{[%clk 0:00:47.2]} 33... Rfb8 {[%clk 0:00:17.3]} 34. a6 {[%clk 0:00:42.6]} 34...
d4 {[%clk 0:00:07.6]} 35. a7 {[%clk 0:00:40.4]} 35... Ra8 {[%clk 0:00:08.1]} 36.
Qb1 {[%clk 0:00:30.3]} 36... Rxb1 {[%clk 0:00:07.6]} 37. Rxb1 {[%clk 0:00:31.2]}
37... Bf8 {[%clk 0:00:06.3]} 38. Bf1 {[%clk 0:00:27.9]} 38... Qd6 {[%clk
0:00:04.5]} 39. Bc4+ {[%clk 0:00:27.3]} 39... Kh8 {[%clk 0:00:04.2]} 40. Rb8
{[%clk 0:00:26.5]} 40... Qxc7 {[%clk 0:00:03.2]} 41. Rxa8 {[%clk 0:00:25.3]}
41... Kg7 {[%clk 0:00:01.1]} 42. Kg2 {[%clk 0:00:17.4]} 42... Qxc4 {[%clk
0:00:01]} 43. Rxf8 {[%clk 0:00:16.9]} 43... Qc2+ {[%clk 0:00:01.9]} 44. Kh3
{[%clk 0:00:16.2]} 44... Qxa2 {[%clk 0:00:02.2]} 45. a8=Q {[%clk 0:00:16]} 45...
Qxa8 {[%clk 0:00:02.2]} 46. Rxa8 {[%clk 0:00:15]} 46... d3 {[%clk 0:00:03.1]}
47. Ra7+ {[%clk 0:00:15.1]} 47... Kg6 {[%clk 0:00:04]} 48. Kg2 {[%clk
0:00:14.3]} 48... Kh5 {[%clk 0:00:04.9]} 49. Rxh7+ {[%clk 0:00:13.4]} 49... Kg6
{[%clk 0:00:05]} 50. Rd7 {[%clk 0:00:14.3]} 50... e3 {[%clk 0:00:05.7]} 51. Rxd3
{[%clk 0:00:12.2]} 1-0

[Event "*** SCC Grand Prix: Titled Tuesday Blitz"]
[Site "Chess.com"]
[Date "2020.06.09"]
[Round "2"]
[White "jonaszmb"]
[Black "novocane"]
[Result "1/2-1/2"]
[WhiteElo "2429"]
[BlackElo "2200"]
[TimeControl "180+1"]
[EndTime "9:19:07 PDT"]
[Termination "Game drawn by repetition"]

1. e4 {[%clk 0:03:00.9]} 1... c5 {[%clk 0:02:59.6]} 2. Nf3 {[%clk 0:03:00.9]}
2... Nc6 {[%clk 0:02:59.5]} 3. Nc3 {[%clk 0:03:00.9]} 3... e5 {[%clk 0:02:59.4]}
4. Bc4 {[%clk 0:03:00.2]} 4... d6 {[%clk 0:02:59.4]} 5. d3 {[%clk 0:03:00.2]}
5... Be7 {[%clk 0:02:58.6]} 6. O-O {[%clk 0:02:59.7]} 6... Nf6 {[%clk
0:02:57.8]} 7. Bg5 {[%clk 0:02:59.3]} 7... O-O {[%clk 0:02:54.5]} 8. a3 {[%clk
0:02:56.1]} 8... Be6 {[%clk 0:02:52.8]} 9. h3 {[%clk 0:02:53.2]} 9... Nd4 {[%clk
0:02:48.5]} 10. Bxf6 {[%clk 0:02:49.6]} 10... Bxf6 {[%clk 0:02:47.3]} 11. Nxd4
{[%clk 0:02:49.9]} 11... cxd4 {[%clk 0:02:47.2]} 12. Nd5 {[%clk 0:02:50.2]}
12... Bg5 {[%clk 0:02:39.9]} 13. Qh5 {[%clk 0:02:46.8]} 13... g6 {[%clk
0:02:31.5]} 14. Qf3 {[%clk 0:02:46.6]} 14... Kg7 {[%clk 0:02:17.3]} 15. Rae1
{[%clk 0:02:34.7]} 15... Qd7 {[%clk 0:02:05.3]} 16. Qg3 {[%clk 0:02:28.1]} 16...
Bd8 {[%clk 0:01:56.5]} 17. f4 {[%clk 0:02:25.4]} 17... Bxd5 {[%clk 0:00:51]} 18.
Bxd5 {[%clk 0:02:26.3]} 18... Bf6 {[%clk 0:00:45.5]} 19. f5 {[%clk 0:02:15.9]}
19... Qe7 {[%clk 0:00:43.9]} 20. Kh1 {[%clk 0:02:07]} 20... Bg5 {[%clk
0:00:22.1]} 21. Qf3 {[%clk 0:01:57.7]} 21... f6 {[%clk 0:00:19.4]} 22. g3 {[%clk
0:01:53.5]} 22... Be3 {[%clk 0:00:19]} 23. h4 {[%clk 0:01:50.3]} 23... g5 {[%clk
0:00:08.9]} 24. h5 {[%clk 0:01:42]} 24... h6 {[%clk 0:00:07.7]} 25. c4 {[%clk
0:01:42.2]} 25... Rfc8 {[%clk 0:00:07.4]} 26. b4 {[%clk 0:01:42.3]} 26... Rc7
{[%clk 0:00:07.4]} 27. Kg2 {[%clk 0:01:36.8]} 27... Rac8 {[%clk 0:00:07.9]} 28.
Rxe3 {[%clk 0:01:32.7]} 28... dxe3 {[%clk 0:00:07.5]} 29. Qxe3 {[%clk
0:01:33.6]} 29... b5 {[%clk 0:00:07.6]} 30. Be6 {[%clk 0:01:30.3]} 30... bxc4
{[%clk 0:00:06.6]} 31. Bxc8 {[%clk 0:01:05]} 31... Rxc8 {[%clk 0:00:07.1]} 32.
Rc1 {[%clk 0:01:05.6]} 32... c3 {[%clk 0:00:06.7]} 33. d4 {[%clk 0:00:45.6]}
33... Qc7 {[%clk 0:00:06.8]} 34. dxe5 {[%clk 0:00:44.2]} 34... dxe5 {[%clk
0:00:07.7]} 35. Rc2 {[%clk 0:00:38.3]} 35... a6 {[%clk 0:00:06.1]} 36. a4 {[%clk
0:00:31.8]} 36... Qc4 {[%clk 0:00:05.9]} 37. b5 {[%clk 0:00:28.3]} 37... axb5
{[%clk 0:00:06]} 38. axb5 {[%clk 0:00:29.2]} 38... Qxb5 {[%clk 0:00:06.2]} 39.
Qa7+ {[%clk 0:00:26.3]} 39... Kh8 {[%clk 0:00:06.4]} 40. Qf7 {[%clk 0:00:24]}
40... Qc6 {[%clk 0:00:07]} 41. Kf3 {[%clk 0:00:18.9]} 41... Rd8 {[%clk
0:00:06.1]} 42. Ra2 {[%clk 0:00:06.8]} 42... Rd3+ {[%clk 0:00:05.1]} 43. Kf2
{[%clk 0:00:04.6]} 43... Rd2+ {[%clk 0:00:02.8]} 44. Rxd2 {[%clk 0:00:03.5]}
44... cxd2 {[%clk 0:00:03.7]} 45. Qf8+ {[%clk 0:00:04.1]} 45... Kh7 {[%clk
0:00:04.4]} 46. Qf7+ {[%clk 0:00:04.7]} 46... Kh8 {[%clk 0:00:05]} 47. Qf8+
{[%clk 0:00:05.6]} 47... Kh7 {[%clk 0:00:05.8]} 48. Qf7+ {[%clk 0:00:06.2]}
48... Kh8 {[%clk 0:00:06.4]} 1/2-1/2